Cogmind - Beta 11.1 @@@ ROGUE MODE // 2022.04.24 @ 19:40:33 // AFD2020/Player2 Player: Kiks Result: Self-destructed Performance ------------- Evolutions (3) 1500 Regions Visited (6) 1200 Robots Destroyed (44) 220 Value Destroyed (1311) 1311 Prototype IDs (5) 100 Alien Tech Used (0) 0 Bonus (983) 983 TOTAL SCORE: 5314 Bonus ------- High Alert Combat Kills 278 Follower Combat Kills 1166 Friendly Fire -461 Cogmind --------- Core Integrity 461/700 Matter 268/300 Energy 100/100 System Corruption 0% Temperature Cool (0) Movement Walking (120) Location -7/Factory Parts ------- > --- POWER (1) -------- (None) > --- PROPULSION (4) --- Aluminum Leg Carbon-fiber Leg Carbon-fiber Leg > --- UTILITY (4) ------ Improved Cooling System Coolant Injector Small Storage Unit > --- WEAPON (4) ------- Plasma Cannon Plasma Cannon Plasma Cannon > --- INVENTORY (8) ---- Light Angular Momentum Engine Aluminum Leg Carbon-fiber Leg Carbon-fiber Leg System Restoration Module Improved EM Pulse Cannon Improved EM Pulse Cannon Improved EM Pulse Cannon Peak State ------------ > --- POWER ------------ Heavy Deuterium Engine > --- PROPULSION ------- Aluminum Leg Carbon-fiber Leg Carbon-fiber Leg Titanium Leg > --- UTILITY ---------- Improved Cooling System Coolant Injector Small Storage Unit System Restoration Module > --- WEAPON ----------- Heavy Laser Heavy Laser Plasma Cannon Plasma Cannon > --- INVENTORY -------- Light Angular Momentum Engine Aluminum Leg Improved Cooling System System Restoration Module Improved EM Pulse Cannon Improved EM Pulse Cannon Improved EM Pulse Cannon Plasma Cannon [Rating: 47] Favorites ----------- Power Ion Engine Engine Ion Engine Propulsion Aluminum Leg Leg Aluminum Leg Utility Small Storage Unit Device Improved Cooling System Storage Small Storage Unit Processor Corruption Screen Weapon Plasma Cannon Energy Gun Heavy Laser Energy Cannon Plasma Cannon Ballistic Gun Light Assault Rifle Build | -11 -10 -10 -10 -9 -8 -7 ------- Run | Scr Mat Min Exi Min Mat Fac Slots Evolved 6 | . . . . . 4 2 Power . | . . . . . . . Propulsion 2 | . . . . . 2 . Utility 2 | . . . . . 1 1 Weapon 2 | . . . . . 1 1 Parts Attached 51 | 7 1 . . 1 19 23 Power 6 | 1 1 . . . 2 2 Engine 6 | 1 1 . . . 2 2 Core . | . . . . . . . Reactor . | . . . . . . . Propulsion 14 | 2 . . . . 5 7 Treads . | . . . . . . . Leg 14 | 2 . . . . 5 7 Wheel . | . . . . . . . Hover . | . . . . . . . Flight . | . . . . . . . Utility 13 | 2 . . . . 3 8 Device 10 | 1 . . . . 3 6 Storage 1 | 1 . . . . . . Processor 2 | . . . . . . 2 Hackware . | . . . . . . . Protection . | . . . . . . . Artifact . | . . . . . . . Weapon 18 | 2 . . . 1 9 6 Energy Gun 7 | 1 . . . . 3 3 Energy Cannon 8 | . . . . . 5 3 Ballistic Gun 3 | 1 . . . 1 1 . Ballistic Cannon . | . . . . . . . Launcher . | . . . . . . . Special Weapon . | . . . . . . . Impact Weapon . | . . . . . . . Slashing Weapon . | . . . . . . . Piercing Weapon . | . . . . . . . Special Melee Weapon . | . . . . . . . Unidentified Prototypes 4 | . . . . . 2 2 Parts Lost 6 | . . . . . . 6 Power 1 | . . . . . . 1 Propulsion 2 | . . . . . . 2 Utility 1 | . . . . . . 1 Weapon 2 | . . . . . . 2 Highest Loss Streak 3 | . . . . . . 3 To Critical Strikes . | . . . . . . . Average Slot Usage (%) 98 | . 100 100 100 100 94 99 Engine 9 | . 14 14 14 14 9 7 Leg 29 | . 28 28 28 28 31 29 Device 18 | . 14 14 14 14 17 22 Storage 9 | . 14 14 14 14 9 7 Energy Gun 11 | . 14 14 14 14 1 13 Energy Cannon 11 | . . . . . 23 16 Ballistic Gun 5 | . 14 14 14 14 2 . Naked Turns . | . . . . . . . Heaviest Build 46 | 14 14 14 14 15 32 46 Greatest Support 57 | 20 20 20 20 20 52 57 Greatest Overweight (x) 1 | 1 . . . . . 1 Average Overweight (x) . | . . . . . . . Largest Inventory Capacity 8 | 8 8 8 8 8 8 8 Average Capacity 7 | 7 8 8 8 8 8 8 Most Carried 8 | 4 8 8 8 8 8 8 Average Carried 6 | 2 2 7 8 8 5 7 Final Capacity 8 | 8 8 8 8 8 8 8 Final Carried 8 | 4 8 8 8 8 8 8 Class Distribution -------------------- 38% | Mutant 34% | Gunner 18% | Scavenger-Gunner 8% | Scavenger-Skirmisher Dominant Class ---------------- Mutant | -10/Materials Mutant | -10/Mines Mutant | -10/Exiles Mutant | -9/Mines Scavenger-Gunner | -8/Materials Gunner | -7/Factory Resources | -11 -10 -10 -10 -9 -8 -7 ----------- Run | Scr Mat Min Exi Min Mat Fac Matter Collected 724 | 261 59 6 . 27 197 174 Remotely . | . . . . . . . Salvage Created 1601 | 24 158 44 . 66 533 776 Parts 98 | 6 6 1 . 5 47 33 Haulers Intercepted 4 | . . . . . 1 3 Recyclers Shooed 1 | . 1 . . . . . Parts Field Recycled . | . . . . . . . Retrieved Matter . | . . . . . . . Parts Self-Destructed . | . . . . . . . Prevented . | . . . . . . . Kills | -11 -10 -10 -10 -9 -8 -7 ------- Run | Scr Mat Min Exi Min Mat Fac Combat Hostiles Destroyed 27 | . 1 . . 4 9 13 Guns 11 | . 1 . . 4 . 6 Cannons 16 | . . . . . 9 7 Classes Destroyed 12 | 1 4 1 . . 3 3 Worker 3 | . 1 . . . 2 . Tunneler 1 | 1 . . . . . . Hauler 4 | . . . . . 1 3 Recycler 1 | . 1 . . . . . Operator 2 | . . . . . 1 1 Watcher 4 | . 1 . . . 1 2 Swarmer 8 | . 1 . . 4 3 . Grunt 9 | . . 1 . . 2 6 Duelist 1 | . . . . . . 1 Sentry 8 | . . . . . 5 3 Hunter 2 | . . . . . . 2 Programmer 1 | . . . . . . 1 Best Kill Streak 6 | 1 1 . . 3 6 5 Combat Bots Only 3 | . 1 . . 3 3 3 Max Kills in Single Turn 2 | 1 1 1 . 1 2 2 Gunslinging . | . . . . . . . Exploded . | . . . . . . . Melee . | . . . . . . . Uniques/NPCs Destroyed . | . . . . . . . Combat | -11 -10 -10 -10 -9 -8 -7 -------- Run | Scr Mat Min Exi Min Mat Fac Damage Taken 1654 | . 147 24 . 72 268 1143 Core 266 | . 45 10 . 44 42 125 Absorbed by Shields . | . . . . . . . Core Remaining (%) 82 | 100 . . . 60 88 . Volleys Fired 102 | 1 23 2 . 7 23 46 Largest 4 | 2 2 2 . 2 3 4 Hottest 309 | 70 70 70 . 70 235 309 Shots Fired 317 | 2 45 5 . 14 69 182 Gun 146 | 2 45 5 . 14 . 80 Cannon 171 | . . . . . 69 102 Launcher . | . . . . . . . Special . | . . . . . . . Kinetic 32 | 1 22 2 . 7 . . Thermal 285 | 1 23 3 . 7 69 182 Explosive . | . . . . . . . Electromagnetic . | . . . . . . . Robot Hit Streak 7 | 1 4 3 . 4 6 7 Robot Miss Streak 7 | . 4 1 . 1 5 7 Penetration Max . | . . . . . . . Secondary Targets . | . . . . . . . Shots Hit Robots 147 | 1 24 3 . 9 29 81 Core Hits 61 | 1 7 1 . 4 17 31 Critical Kills 1 | . . . . . . 1 Critical Parts Destroyed . | . . . . . . . Critical Strikes 4 | . 2 . . . . 2 Burn 3 | . 2 . . . . 1 Meltdown 1 | . . . . . . 1 Melee Attacks . | . . . . . . . Impact . | . . . . . . . Slashing . | . . . . . . . Piercing . | . . . . . . . Sneak Attacks . | . . . . . . . Combat Hostiles . | . . . . . . . Follow-up Attacks . | . . . . . . . Damage Inflicted 3273 | 10 282 53 . 108 901 1919 Guns 1372 | 10 282 53 . 105 . 922 Cannons 1898 | . . . . . 901 997 Explosions . | . . . . . . . Melee . | . . . . . . . Ramming 3 | . . . . 3 . . Kinetic 192 | 10 123 16 . 43 . . Thermal 3078 | . 159 37 . 62 901 1919 Explosive . | . . . . . . . Electromagnetic . | . . . . . . . Impact . | . . . . . . . Slashing . | . . . . . . . Piercing . | . . . . . . . Highest Corruption 2 | . 2 2 2 2 . 2 Average Corruption 1 | . 2 2 2 2 . 1 Corruption Purged 2 | . . . . . . 2 Corruption Blocked . | . . . . . . . Effects 25 | . 9 4 . 4 . 8 Message Errors 6 | . 3 . . 1 . 2 Matter Fused 6 | . 3 1 . 1 . 1 Heat Flow Errors 4 | . . 2 . . . 2 Energy Discharges 3 | . 1 . . 1 . 1 Data Loss (minor) 3 | . 1 . . 1 . 1 Data Loss (major) 1 | . . . . . . 1 Misfires 1 | . . 1 . . . . Weapon Failures 1 | . 1 . . . . . Overload Shots . | . . . . . . . Overflow Damage 35 | . . . . . 5 30 Projectiles 35 | . . . . . 5 30 Explosions . | . . . . . . . Melee . | . . . . . . . Knockbacks . | . . . . . . . Impact . | . . . . . . . Kinetic . | . . . . . . . Secondary . | . . . . . . . Self-Inflicted Damage . | . . . . . . . Shots . | . . . . . . . Rammed . | . . . . . . . Targets Rammed 1 | . . . . 1 . . Kicked 1 | . . . . 1 . . Crushed . | . . . . . . . Highest Temperature 250 | 30 80 250 . 50 173 198 Average Temperature 64 | 19 27 88 . 25 69 77 Received Heat Transfer 156 | . 18 . . . 45 93 Siege Activations . | . . . . . . . Robots Corrupted . | . . . . . . . Combat Hostiles . | . . . . . . . Parts Fried . | . . . . . . . Impact Corruptions . | . . . . . . . Robots Melted 1 | . . . . . . 1 Combat Hostiles . | . . . . . . . Parts Melted 13 | . 3 . . . 4 6 Heat Transferred 5862 | . 573 111 . 185 1371 3622 Parts Sabotaged . | . . . . . . . Parts Stolen . | . . . . . . . Parts Stripped . | . . . . . . . Power Chain Reactions . | . . . . . . . Missiles Intercepted . | . . . . . . . Alert | -11 -10 -10 -10 -9 -8 -7 ------- Run | Scr Mat Min Exi Min Mat Fac Peak Influence 1424 | 5 230 111 . 274 583 1424 Initial 264 | . 3 13 . . 106 264 Average 379 | . 76 63 . 249 281 633 Maximum Alert Level 4 | . 1 . . 1 2 4 Low Security (%) 35 | 100 92 100 . 17 44 . Level 1 23 | . 7 . . 82 30 21 Level 2 22 | . . . . . 25 38 Level 3 14 | . . . . . . 32 Level 4 3 | . . . . . . 6 Level 5 . | . . . . . . . High Security . | . . . . . . . Max Security . | . . . . . . . Squads Dispatched 10 | . 2 . . . 2 6 Investigation . | . . . . . . . Extermination 1 | . . . . . . 1 Reinforcement 6 | . 2 . . . 1 3 Assault 2 | . . . . . . 2 Garrison 1 | . . . . . 1 . Intercept . | . . . . . . . Searches Triggered . | . . . . . . . Construction Impeded 3 | . . . . . 1 2 Haulers Reinforced . | . . . . . . . Active Scanning Responses . | . . . . . . . Cargo Convoy Interrupts 1 | . . . . . . 1 Stealth | -11 -10 -10 -10 -9 -8 -7 --------- Run | Scr Mat Min Exi Min Mat Fac Distress Signals 6 | . 1 . . . 3 2 Communications Jammed . | . . . . . . . Distress Signals . | . . . . . . . Times Spotted 87 | . 12 3 . 7 20 45 Peak Tracking Total 8 | . 4 3 . 4 5 8 Tactical Retreats 1 | . . . . . . 1 Traps | -11 -10 -10 -10 -9 -8 -7 ------- Run | Scr Mat Min Exi Min Mat Fac Traps Triggered 3 | . 2 . . . . 1 Indirectly . | . . . . . . . Trap Hack Attempts . | . . . . . . . Triggered . | . . . . . . . Disarmed . | . . . . . . . Reprogrammed . | . . . . . . . Reused . | . . . . . . . Traps Extracted . | . . . . . . . Installed . | . . . . . . . Triggered 1 | . . . . . 1 . Machines | -11 -10 -10 -10 -9 -8 -7 ---------- Run | Scr Mat Min Exi Min Mat Fac Machines Disabled 12 | . . . . 1 1 10 Max in Single Turn 2 | . . . . . . 2 Garrison Access 2 | . . . . . 1 1 Machines Sabotaged . | . . . . . . . Garrisons Compromised . | . . . . . . . Overloaded Fab Kills . | . . . . . . . Hacking | -11 -10 -10 -10 -9 -8 -7 --------- Run | Scr Mat Min Exi Min Mat Fac Machines Accessed 10 | . 1 . 1 . 5 3 Terminals 7 | . 1 . . . 4 2 Fabricators . | . . . . . . . Repair Stations . | . . . . . . . Recycling Units . | . . . . . . . Scanalyzers . | . . . . . . . Garrison Access 2 | . . . . . 1 1 Total Hacks 48 | . 3 . 23 . 13 9 Successful 36 | . 2 . 23 . 8 3 Failed 12 | . 1 . . . 5 6 Catastrophic 4 | . . . . . 1 3 Database Lockouts . | . . . . . . . Manual 15 | . 3 . . . 7 5 Terminals 20 | . 3 . . . 11 6 Fabricators . | . . . . . . . Repair Stations . | . . . . . . . Recycling Units . | . . . . . . . Scanalyzers . | . . . . . . . Garrison Access 5 | . . . . . 2 3 Terminal Hacks 26 | . . . 23 . 3 . Record 23 | . . . 23 . . . Level Access Points 1 | . . . . . 1 . Branch Access Points 1 | . . . . . 1 . Emergency Access Points 1 | . . . . . 1 . Fabricator Hacks . | . . . . . . . Repair Station Hacks . | . . . . . . . Recycling Unit Hacks . | . . . . . . . Scanalyzer . | . . . . . . . Garrison Access Hacks 3 | . . . . . 2 1 Seal Access 2 | . . . . . 1 1 Coupler Status 1 | . . . . . 1 . Unauthorized Hacks 7 | . 2 . . . 3 2 Terminals 7 | . 2 . . . 3 2 Assimilate 1 | . 1 . . . . . Botnet 6 | . 1 . . . 3 2 Fabricators . | . . . . . . . Repair Stations . | . . . . . . . Recycling Units . | . . . . . . . Scanalyzers . | . . . . . . . Garrison Access . | . . . . . . . Data Cores Recovered 2 | . . . . . 1 1 Used 1 | . . . . . . 1 Hacking Detections 8 | . 1 . . . 4 3 Full Trace Events . | . . . . . . . Feedback Events . | . . . . . . . Feedback Blocked . | . . . . . . . Robot Schematics Acquired . | . . . . . . . Robots Built . | . . . . . . . Authchips . | . . . . . . . Time . | . . . . . . . Total Robot Build Rating . | . . . . . . . Part Schematics Acquired . | . . . . . . . Parts Built . | . . . . . . . Authchips . | . . . . . . . Time . | . . . . . . . Total Part Build Rating . | . . . . . . . Parts Repaired . | . . . . . . . Time . | . . . . . . . Parts Recycled . | . . . . . . . Recycled Matter . | . . . . . . . Retrieved Matter . | . . . . . . . Retrieved Components . | . . . . . . . Parts Scanalyzed . | . . . . . . . Part Schematics Acquired . | . . . . . . . Parts Damaged . | . . . . . . . Bothacking | -11 -10 -10 -10 -9 -8 -7 ------------ Run | Scr Mat Min Exi Min Mat Fac Used RIF Installer . | . . . . . . . Robots Hacked . | . . . . . . . Non-combat . | . . . . . . . Combat . | . . . . . . . Robot Hacks Applied . | . . . . . . . Relay Couplers Released . | . . . . . . . Fabnet Peak Effective % . | . . . . . . . Robots Rewired . | . . . . . . . Allies Hacked . | . . . . . . . Hacks Repelled . | . . . . . . . Allies | -11 -10 -10 -10 -9 -8 -7 -------- Run | Scr Mat Min Exi Min Mat Fac Total Allies 5 | . 1 4 . . . . Largest Group 4 | . 1 4 3 3 3 1 Highest-Rated Group 120 | . 57 120 89 89 99 82 Highest-Rated Ally 82 | . 57 57 57 57 73 82 Total Orders . | . . . . . . . Ally Attacks 101 | . 15 10 . 13 32 31 Total Damage 7268 | . 321 90 . 161 514 6182 Kills 73 | . 5 3 . 4 8 53 Allies Corrupted . | . . . . . . . Allies Melted . | . . . . . . . Intel | -11 -10 -10 -10 -9 -8 -7 ------- Run | Scr Mat Min Exi Min Mat Fac Robot Analysis Total . | . . . . . . . Derelict Logs Recovered . | . . . . . . . Drone Launches . | . . . . . . . Drone Recoveries . | . . . . . . . Exploration | -11 -10 -10 -10 -9 -8 -7 ------------- Run | Scr Mat Min Exi Min Mat Fac Turns Passed 3250 | 69 506 239 199 245 621 1371 Spaces Moved 1992 | 45 273 159 147 157 328 883 Core 3 | 3 . . . . . . Treads . | . . . . . . . Legs 1989 | 42 273 159 147 157 328 883 Wheels . | . . . . . . . Hover . | . . . . . . . Flight . | . . . . . . . Fastest Speed 50 | 50 120 120 120 120 120 120 Average Speed 121 | 116 120 120 120 120 120 122 Slowest Speed 190 | 120 120 120 120 120 122 190 Overloaded Moves . | . . . . . . . Propulsion Burnouts . | . . . . . . . Robots Hopped . | . . . . . . . Cave-ins Triggered . | . . . . . . . Exploration Rate (%) 36 | 3 55 41 53 32 38 30 Regions Visited 6 Branch Regions 3 Pre-discovered Areas 1 | . . . 1 . . . Known Exits Taken 1 | . . . . . 1 . Unknown Exits Taken 5 | 1 1 1 1 1 . . Scrap Searched 1 | . . 1 . . . . Spaces Dug . | . . . . . . . Terrain Destroyed 27 | . . . . . 27 . Melee . | . . . . . . . Projectile 27 | . . . . . 27 . AOE . | . . . . . . . Terrain Rammed . | . . . . . . . Walls Destroyed . | . . . . . . . Machines Disabled . | . . . . . . . Actions | -11 -10 -10 -10 -9 -8 -7 --------- Run | Scr Mat Min Exi Min Mat Fac Total 2602 | 56 411 205 169 201 501 1059 Wait 388 | . 103 37 23 35 111 79 Move 1986 | 44 272 158 146 156 327 883 Hop . | . . . . . . . Pick Up 29 | 4 8 4 . . 5 8 Fast Attach 27 | 7 1 . . . 9 10 Attach 8 | . . . . . 3 5 Detach . | . . . . . . . Swap 16 | . . . . 1 7 8 Drop 45 | . 4 4 . 1 16 20 Fire 102 | 1 23 2 . 7 23 46 Melee . | . . . . . . . Ram . | . . . . . . . Kick 1 | . . . . 1 . . Crush . | . . . . . . . Escape Stasis . | . . . . . . . Rewire . | . . . . . . . Trap . | . . . . . . . Miscellaneous . | . . . . . . . Route ------- -11/Scrapyard -10/Materials (discovered 3 exits: [*Mat x2] / [*Min]) -10/Mines -10/Exiles -9/Mines -8/Materials (discovered 3 exits: *Fac x3) -7/Factory (discovered 3 exits: [*Fac] / [*Sto] / [*Low]) History --------- Turn | Location | Event 28 | -11/Scrapyard | Discovered new exit (range 15) 70 | -11/Scrapyard | Entered Materials 213 | -10/Materials | Discovered new exit (range 16) 317 | -10/Materials | Build established: Mutant 317 | -10/Materials | Discovered new exit (range 15) 415 | -10/Materials | Discovered new exit (range 5) 576 | -10/Materials | Entered Mines 599 | -10/Mines | Assisted by bots powering up and referring to "LRC-V3" 748 | -10/Mines | Escorted by a lone wolf Derelict 796 | -10/Mines | Deemed a non-threat by the Exiles lab entrance 796 | -10/Mines | Discovered new exit (range 5) 815 | -10/Mines | Entered Exiles 815 | -10/Exiles | Accompanied by 3 allies 844 | -10/Exiles | Met 8R-AWN 866 | -10/Exiles | Met EX-HEX 904 | -10/Exiles | Met EX-BIN 935 | -10/Exiles | Met EX-DEC 943 | -10/Exiles | Learned location of Zion (-7) 981 | -10/Exiles | Discovered new exit (range 10) 1014 | -10/Exiles | Entered Mines 1014 | -9/Mines | Accompanied by 2 allies 1020 | -9/Mines | Met a Derelict bent on vengeance 1111 | -9/Mines | Assembled infested the area 1214 | -9/Mines | Discovered new exit (range 7) 1237 | -9/Mines | Found a hidden stash of uninstalled traps 1259 | -9/Mines | Entered Materials 1259 | -8/Materials | Accompanied by 2 allies 1259 | -8/Materials | Evolved 4 slots: Propulsion x2, Utility x1, Weapon x1 1554 | -8/Materials | Garrison activated, responded to threat 1723 | -8/Materials | Identified exit to Factory 1818 | -8/Materials | Build established: Scavenger-Gunner 1880 | -8/Materials | Entered Factory 1880 | -7/Factory | Evolved 2 slots: Utility x1, Weapon x1 2189 | -7/Factory | Discovered new exit (range 12) 2252 | -7/Factory | Discovered new exit (range 4) 2356 | -7/Factory | Discovered new exit (range 16) 2431 | -7/Factory | Build established: Gunner 3080 | -7/Factory | First assault squad dispatched 3186 | -7/Factory | Cargo convoy interrupted 3251 | -7/Factory | Self-destructed Last Messages --------------- 03244_ U-05 Engineer lays Concrete. 03244_ Carbon-fiber Leg destroyed. 03245_ U-05 Engineer builds a Wall. 03246_ Hvy. Laser destroyed. 03246_ K-01 Serf collects debris. 03247_ R-06 Scavenger inserts Faulty Imp. Spread Laser into recycling unit. 03248_ Player 2 swaps in Prototype Launcher. 03249_ Acquired 14 matter. 03249_ U-05 Engineer lays Concrete. 03249_ Player 2 removes Prototype Launcher. 03250_ U-05 Engineer lays Concrete. 03250_ Player 2 attaches Gauss Rifle. 03250_ U-05 Engineer lays Concrete. 03250_ R-06 Scavenger inserts Hvy. Particle Cannon into recycling unit. 03251_ Penetrated by Slug. 03251_ Hvy. Deuterium Engine destroyed. 03251_ K-01 Serf collects debris. 03251_ U-05 Engineer builds a Wall. 03251_ Player 2 swaps in Prototype Launcher. 03251_ U-05 Engineer lays Concrete. Map ----- +----------------------------------------------------+ | ?????????????????????????????????????????????????? | | ?????????????????????????????????????????????????? | | ?????????????????????????????????????????????????? | | ?????????????????????????????????????????????????? | | ?????????????????????????????????????????????????? | | ?????????????????????????????????????????????????? | | ?????????????????????????????????????????????????? | | ?????????????????????????????????????????????????? | | ?????????????????????????????????????????????????? | | ??????????????????????? ??????????????????????? | | ??????????????????????? #????????????????????? | | ??????????????????????# #????????????????????? | | ??????????????????????# #????????????????????? | | ##############??????### #????????????????????? | | # ?????? #k #????????????????????? | | # "??"""" #k +????????????????????? | | # "??"""" # i#????????????????????? | | # "?""""" # #????????????????????? | | # "?"""" # #????????????????????? | | # ?? #! #????????????????????? | | # """""""]!!*] #????????????????????? | | # """""""*[![*! #########????????????? | | # * """""""%!%[!!@# """ """????????????? | | # "" """"=![[!! """ """ ""?????????? | | ?# *=%%#!%! # """ """ """ ""?????? | | ? ???# !% !=%#u @ # ????? | | ###+####### # # = # ! % ????? | | ^ % k # ????? | | ^ ** k ????? | | ! %] ! H ????? | | % ##############+#?????? | | [% [ % #???????????????????? | | ###+### ## # #u##### # ##???????????????????? | | % [!!%!= """ ??????????????????? | | """" " # ! # "Y" #????????????????? | | """""" # % """ # "r" #????????????????? | | """""" "" [ # #????????????????? | | """""" """%[# #????????????????? | | # """ #????????????????? | | """""" # "" # """ #????????????????? | | """""" # "" " """ # ""??#????????????????? | | """"""?# """" """ # = ?????????????????????? | | """""??#%"""" ""????#####?????????##??????????? | | # ? ??????????????????? ??????????? | | # ???? ??????????????????? ?????? ? | | ###########+????###????????????""???? """????# ? | | ?# ! #?????????????????? """ """ """ ???# | | ?? #?#???????????????? """ """ """ ???# | | #??? # #???????????????# #??# | | #????? # #???????????????# """ """ """ #??# | +----------------------------------------------------+ Best States ------------- Heat Dissipation 88 Coolant Potential 65 Energy Generation 18 Energy Capacity 310 Matter Stores 300 Matter Capacity 300 Sight Range 16 Terrain Scan Range 16 Terrain Scan Density 10 Evasion (%) 55 Item Schematics ----------------- None Robot Schematics ------------------ None Fabricated ------------ Nothing Alien Tech Used ----------------- None Achievements -------------- None Challenges ------------ None Player 2 | -11 -10 -10 -10 -9 -8 -7 ---------- Run | Scr Mat Min Exi Min Mat Fac Slots Evolved 6 | . . . . 4 2 . Power 1 | . . . . 1 . . Propulsion 3 | . . . . 2 1 . Utility 2 | . . . . 1 1 . Weapon . | . . . . . . . Parts Attached 67 | . 9 . . . 27 31 Parts Lost 7 | . . . . . . 7 Damage Taken 1983 | . 109 16 . . 217 1641 Core 136 | . . . . . 22 114 Player 2/Cogmind (%) 33 | . . . . . 34 47 Absorbed by Shields . | . . . . . . . Damage Inflicted 6926 | . 321 9 . 55 359 6182 Player 2/Cogmind (%) 67 | . 53 14 . 33 28 76 Combat Hostiles Destroyed 36 | . 4 1 . 2 5 24 Player 2/Cogmind (%) 57 | . 80 100 . 33 35 64 Game ------ Seed DroneBehemothCompressor Manual? 0 Play Time 00:27:40 Cumulative 103.3 hours Start 2022.04.24 @ 19:13:52 End 2022.04.24 @ 19:40:33 Sessions 1 Manual Loads 0 Difficulty Rogue Special Mode AFD2020/Player2 Game No. 64 Rogue 25 Adventurer 5 Explorer 34 Win Type - Total 19 Types 10/0/4/4/1/0/0/0/0 Lore% 69 Gallery% 68 Achievement% 74 Wizard Run 0 Options --------- ASCII 0 Keyboard 0 Movement Mouse Keybinds 0 Fullscreen 1 Font 12/Terminus Map View 83x54 Tactical HUD 1 Map Filters NONE Filters NONE Steam 1 RUN: 6d08574f-bd9d-4924-b5a0-05b04d2ca20a